Cogmind - Beta 11 @@@ ROGUE MODE // 2022.03.25 @ 19:48:39 Player: Shin Result: Destroyed by G-34 Mercenary with Small Laser Performance ------------- Evolutions (1) 500 Regions Visited (3) 600 Robots Destroyed (46) 230 Value Destroyed (1386) 1386 Prototype IDs (3) 60 Alien Tech Used (0) 0 Bonus (141) 141 TOTAL SCORE: 2917 Bonus ------- Follower Combat Kills 141 Cogmind --------- Core Integrity 0/400 Matter 300/300 Energy 265/265 System Corruption 2% Temperature Cool (6) Movement Walking (260) Ox2 Location -9/Materials Parts ------- > --- POWER (1) -------- Improved Ion Engine > --- PROPULSION (2) --- Aluminum Leg Aluminum Leg > --- UTILITY (4) ------ Heat Sink Large Storage Unit Light Armor Plating Hardened Light Armor Plating > --- WEAPON (2) ------- Beam Rifle Beam Rifle > --- INVENTORY (15) --- Ion Engine Improved Ion Engine Heavy Ion Engine Aluminum Leg Aluminum Leg Improved Aluminum Leg Compact Wheel Heat Sink Cooling System High-capacity Matter Pod (200) Signal Interpreter Light Armor Plating Field Recycling Unit (0) Grenade Launcher Peak State ------------ > --- POWER ------------ Heavy Ion Engine > --- PROPULSION ------- Light Treads Light Treads > --- UTILITY ---------- Heat Sink Large Storage Unit Propulsion Shielding High-powered Tractor Beam > --- WEAPON ----------- Heavy EM Pulse Gun Heavy Assault Rifle > --- INVENTORY -------- Ion Engine Ion Engine Improved Ion Engine Heavy Ion Engine Aluminum Leg Aluminum Leg Aluminum Leg Carbon-fiber Leg Carbon-fiber Leg Compact Wheel High-capacity Matter Pod Light Armor Plating Hardened Light Armor Plating Grenade Launcher [Rating: 16] Favorites ----------- Power Ion Engine Engine Ion Engine Propulsion Aluminum Leg Treads Light Treads Leg Aluminum Leg Utility Small Storage Unit Device Improved Heat Sink Storage Small Storage Unit Protection Hardened Light Armor Plating Weapon Assault Rifle Energy Gun Beam Rifle Ballistic Gun Assault Rifle Launcher Grenade Launcher Build | -11 -10 -10 -9 ------- Run | Scr Mat Min Mat Slots Evolved 2 | . . . 2 Power . | . . . . Propulsion . | . . . . Utility 2 | . . . 2 Weapon . | . . . . Parts Attached 38 | 1 . 8 29 Power 5 | . . 1 4 Engine 5 | . . 1 4 Core . | . . . . Reactor . | . . . . Propulsion 9 | . . 3 6 Treads 2 | . . 2 . Leg 7 | . . 1 6 Wheel . | . . . . Hover . | . . . . Flight . | . . . . Utility 11 | 1 . 1 9 Device 6 | 1 . 1 4 Storage 1 | . . . 1 Processor . | . . . . Hackware . | . . . . Protection 4 | . . . 4 Artifact . | . . . . Weapon 13 | . . 3 10 Energy Gun 9 | . . 2 7 Energy Cannon . | . . . . Ballistic Gun 2 | . . 1 1 Ballistic Cannon . | . . . . Launcher 2 | . . . 2 Special Weapon . | . . . . Impact Weapon . | . . . . Slashing Weapon . | . . . . Piercing Weapon . | . . . . Special Melee Weapon . | . . . . Unidentified Prototypes 1 | . . . 1 Parts Lost 25 | . . 7 18 Power 2 | . . 1 1 Propulsion 7 | . . 3 4 Utility 6 | . . 1 5 Weapon 10 | . . 2 8 Highest Loss Streak 5 | . . 2 5 To Critical Strikes . | . . . . Average Slot Usage (%) 91 | . 100 94 84 Engine 12 | . 14 14 10 Treads 5 | . . 6 6 Leg 18 | . 28 17 14 Device 12 | . 14 12 11 Storage 12 | . 14 14 11 Protection 6 | . . . 13 Energy Gun 7 | . . 4 12 Ballistic Gun 15 | . 28 23 3 Naked Turns . | . . . . Heaviest Build 42 | 15 15 15 42 Greatest Support 40 | 20 20 40 40 Greatest Overweight (x) 11 | . . 4 11 Average Overweight (x) . | . . . . Largest Inventory Capacity 15 | 8 8 8 15 Average Capacity 11 | 8 8 8 14 Most Carried 15 | 7 8 8 15 Average Carried 8 | 6 7 7 10 Final Capacity 15 | 8 8 8 15 Final Carried 14 | 6 8 8 14 Class Distribution -------------------- 73% | Mutant 26% | Scavenger-Mutant Dominant Class ---------------- Mutant | -10/Materials Mutant | -10/Mines Scavenger-Mutant | -9/Materials Resources | -11 -10 -10 -9 ----------- Run | Scr Mat Min Mat Matter Collected 1136 | 211 95 406 424 Remotely 198 | . . . 198 Salvage Created 1706 | 11 291 358 1046 Parts 102 | 5 17 17 63 Haulers Intercepted . | . . . . Recyclers Shooed 1 | . . . 1 Parts Field Recycled . | . . . . Retrieved Matter . | . . . . Parts Self-Destructed . | . . . . Prevented . | . . . . Kills | -11 -10 -10 -9 ------- Run | Scr Mat Min Mat Combat Hostiles Destroyed 38 | . 7 9 22 Guns 34 | . 7 9 18 AOE 4 | . . . 4 Classes Destroyed 10 | 1 3 . 6 Worker 3 | . . . 3 Builder 1 | . . . 1 Tunneler 2 | 1 . . 1 Recycler 1 | . 1 . . Watcher 1 | . . . 1 Swarmer 3 | . 3 . . Grunt 27 | . 4 9 14 Brawler 3 | . . . 3 Duelist 1 | . . . 1 Sentry 4 | . . . 4 Best Kill Streak 5 | 1 4 3 5 Combat Bots Only 4 | . 4 3 4 Max Kills in Single Turn 3 | 1 1 1 3 Gunslinging . | . . . . Exploded 1 | . . . 1 Melee . | . . . . Uniques/NPCs Destroyed . | . . . . Combat | -11 -10 -10 -9 -------- Run | Scr Mat Min Mat Damage Taken 3219 | . 174 873 2172 Core 538 | . . 137 401 Absorbed by Shields . | . . . . Redirected to Shielding 51 | . . . 51 Regen/Repaired (Parts) 74 | . . . 74 Core Remaining (%) 72 | 100 . 45 . Volleys Fired 163 | 1 15 55 92 Largest 2 | 2 2 2 2 Hottest 112 | 40 40 85 112 Shots Fired 281 | 2 30 106 143 Gun 274 | 2 30 106 136 Cannon . | . . . . Launcher 7 | . . . 7 Special . | . . . . Kinetic 151 | 2 30 85 34 Thermal 107 | . . 21 86 Explosive 7 | . . . 7 Electromagnetic 16 | . . . 16 Robot Hit Streak 36 | 1 12 7 36 Robot Miss Streak 4 | 1 2 4 3 Penetration Max . | . . . . Secondary Targets 4 | . 1 2 1 Max Gunslinging Chain 1 | . 1 1 1 Shots Hit Robots 203 | 1 23 69 110 Core Hits 88 | 1 14 19 54 Critical Kills . | . . . . Critical Parts Destroyed 1 | . . 1 . Critical Strikes 4 | . . 1 3 Burn 2 | . . . 2 Destroy 2 | . . 1 1 Melee Attacks . | . . . . Impact . | . . . . Slashing . | . . . . Piercing . | . . . . Sneak Attacks . | . . . . Combat Hostiles . | . . . . Follow-up Attacks . | . . . . Damage Inflicted 3099 | 10 276 776 2037 Guns 2500 | 10 276 776 1438 Cannons . | . . . . Explosions 545 | . . . 545 Melee . | . . . . Ramming 54 | . . . 54 Kinetic 1220 | 10 276 571 363 Thermal 1174 | . . 205 969 Explosive 433 | . . . 433 Electromagnetic 218 | . . . 218 Impact . | . . . . Slashing . | . . . . Piercing . | . . . . Highest Corruption 2 | . . . 2 Average Corruption 2 | . . . 2 Corruption Purged . | . . . . Corruption Blocked . | . . . . Effects 9 | . . . 9 Message Errors 3 | . . . 3 Matter Fused 2 | . . . 2 Data Loss (minor) 1 | . . . 1 Data Loss (major) 1 | . . . 1 Weapon Failures 2 | . . . 2 Overload Shots . | . . . . Overflow Damage 88 | . . . 88 Projectiles . | . . . . Explosions 88 | . . . 88 Melee . | . . . . Knockbacks . | . . . . Impact . | . . . . Kinetic . | . . . . Secondary . | . . . . Self-Inflicted Damage 98 | . . . 98 Shots 2 | . . . 2 Rammed . | . . . . Targets Rammed 21 | . . . 21 Kicked 21 | . . . 21 Crushed . | . . . . Highest Temperature 255 | . 20 56 255 Average Temperature 64 | . 7 17 82 Received Heat Transfer 1539 | . 99 507 933 Siege Activations . | . . . . Robots Corrupted . | . . . . Combat Hostiles . | . . . . Parts Fried . | . . . . Impact Corruptions . | . . . . Robots Melted . | . . . . Combat Hostiles . | . . . . Parts Melted 7 | . . 2 5 Heat Transferred 2897 | . . 495 2402 Parts Sabotaged . | . . . . Parts Stolen . | . . . . Parts Stripped . | . . . . Power Chain Reactions . | . . . . Missiles Intercepted . | . . . . Alert | -11 -10 -10 -9 ------- Run | Scr Mat Min Mat Peak Influence 389 | 5 242 198 389 Initial 76 | . 3 17 76 Average 157 | 3 96 73 242 Maximum Alert Level 1 | . 1 . 1 Low Security (%) 62 | 100 79 100 31 Level 1 37 | . 20 . 68 Level 2 . | . . . . Level 3 . | . . . . Level 4 . | . . . . Level 5 . | . . . . High Security . | . . . . Max Security . | . . . . Squads Dispatched 3 | . . . 3 Investigation . | . . . . Extermination . | . . . . Reinforcement 3 | . . . 3 Assault . | . . . . Garrison . | . . . . Intercept . | . . . . Searches Triggered . | . . . . Construction Impeded . | . . . . Haulers Reinforced . | . . . . Active Scanning Responses . | . . . . Cargo Convoy Interrupts . | . . . . Stealth | -11 -10 -10 -9 --------- Run | Scr Mat Min Mat Distress Signals 2 | . . . 2 Communications Jammed . | . . . . Distress Signals . | . . . . Times Spotted 68 | . 16 12 40 Peak Tracking Total 8 | . 8 4 8 Tactical Retreats 5 | . 1 2 2 Traps | -11 -10 -10 -9 ------- Run | Scr Mat Min Mat Traps Triggered . | . . . . Indirectly . | . . . . Trap Hack Attempts . | . . . . Triggered . | . . . . Disarmed . | . . . . Reprogrammed 6 | . 6 . . Reused . | . . . . Traps Extracted . | . . . . Installed . | . . . . Triggered . | . . . . Machines | -11 -10 -10 -9 ---------- Run | Scr Mat Min Mat Machines Disabled 2 | . . . 2 Max in Single Turn 1 | . . . 1 Machines Sabotaged . | . . . . Garrisons Compromised . | . . . . Overloaded Fab Kills . | . . . . Hacking | -11 -10 -10 -9 --------- Run | Scr Mat Min Mat Machines Accessed 10 | . 4 . 6 Terminals 8 | . 4 . 4 Fabricators . | . . . . Repair Stations 1 | . . . 1 Recycling Units . | . . . . Scanalyzers 1 | . . . 1 Garrison Access . | . . . . Total Hacks 30 | . 9 . 21 Successful 17 | . 7 . 10 Failed 13 | . 2 . 11 Catastrophic 2 | . 1 . 1 Database Lockouts . | . . . . Manual 2 | . . . 2 Terminals 24 | . 9 . 15 Fabricators . | . . . . Repair Stations 2 | . . . 2 Recycling Units . | . . . . Scanalyzers 4 | . . . 4 Garrison Access . | . . . . Terminal Hacks 12 | . 7 . 5 Record 1 | . 1 . . Robot Analysis 1 | . 1 . . Prototype ID Bank 1 | . . . 1 Alert Level 2 | . . . 2 Unreport Threat 1 | . . . 1 Locate Traps 4 | . 3 . 1 Reprogram Traps 1 | . 1 . . Zone Layout 1 | . 1 . . Fabricator Hacks . | . . . . Repair Station Hacks 2 | . . . 2 Scan Component 1 | . . . 1 Repair 1 | . . . 1 Recycling Unit Hacks . | . . . . Scanalyzer 3 | . . . 3 Insert Component 2 | . . . 2 Analyze 1 | . . . 1 Garrison Access Hacks . | . . . . Unauthorized Hacks . | . . . . Terminals . | . . . . Fabricators . | . . . . Repair Stations . | . . . . Recycling Units . | . . . . Scanalyzers . | . . . . Garrison Access . | . . . . Data Cores Recovered . | . . . . Used . | . . . . Hacking Detections 8 | . 3 . 5 Full Trace Events 1 | . . . 1 Feedback Events . | . . . . Feedback Blocked . | . . . . Robot Schematics Acquired . | . . . . Robots Built . | . . . . Authchips . | . . . . Time . | . . . . Total Robot Build Rating . | . . . . Part Schematics Acquired 1 | . . . 1 Parts Built . | . . . . Authchips . | . . . . Time . | . . . . Total Part Build Rating . | . . . . Parts Repaired 1 | . . . 1 Time 32 | . . . 32 Parts Recycled . | . . . . Recycled Matter . | . . . . Retrieved Matter . | . . . . Retrieved Components . | . . . . Parts Scanalyzed 1 | . . . 1 Part Schematics Acquired 1 | . . . 1 Parts Damaged . | . . . . Bothacking | -11 -10 -10 -9 ------------ Run | Scr Mat Min Mat Used RIF Installer . | . . . . Robots Hacked . | . . . . Non-combat . | . . . . Combat . | . . . . Robot Hacks Applied . | . . . . Relay Couplers Released . | . . . . Fabnet Peak Effective % . | . . . . Robots Rewired . | . . . . Allies Hacked . | . . . . Hacks Repelled . | . . . . Allies | -11 -10 -10 -9 -------- Run | Scr Mat Min Mat Total Allies 2 | . . 2 . Largest Group 2 | . . 2 1 Highest-Rated Group 52 | . . 52 31 Highest-Rated Ally 31 | . . 31 31 Total Orders . | . . . . Ally Attacks 17 | . . 6 11 Total Damage 301 | . . 129 172 Kills 5 | . . 3 2 Allies Corrupted . | . . . . Allies Melted . | . . . . Intel | -11 -10 -10 -9 ------- Run | Scr Mat Min Mat Robot Analysis Total 1 | . 1 . . Derelict Logs Recovered 1 | . . 1 . Drone Launches . | . . . . Drone Recoveries . | . . . . Exploration | -11 -10 -10 -9 ------------- Run | Scr Mat Min Mat Turns Passed 2561 | 42 632 685 1202 Spaces Moved 1027 | 31 461 126 409 Core 7 | . . 6 1 Treads 209 | . . 68 141 Legs 811 | 31 461 52 267 Wheels . | . . . . Hover . | . . . . Flight . | . . . . Fastest Speed 120 | 120 120 120 120 Average Speed 154 | 120 120 158 194 Slowest Speed 600 | 120 120 250 600 Overloaded Moves . | . . . . Propulsion Burnouts . | . . . . Robots Hopped . | . . . . Cave-ins Triggered . | . . . . Exploration Rate (%) 44 | 3 82 47 47 Regions Visited 3 Branch Regions 1 Pre-discovered Areas . | . . . . Known Exits Taken . | . . . . Unknown Exits Taken 3 | 1 1 1 . Scrap Searched 1 | . . 1 . Spaces Dug . | . . . . Terrain Destroyed 43 | . . . 43 Melee . | . . . . Projectile . | . . . . AOE 43 | . . . 43 Terrain Rammed . | . . . . Walls Destroyed . | . . . . Machines Disabled . | . . . . Actions | -11 -10 -10 -9 --------- Run | Scr Mat Min Mat Total 1716 | 33 510 515 658 Wait 420 | . 33 318 69 Move 1024 | 30 460 125 409 Hop . | . . . . Pick Up 41 | 1 2 7 31 Fast Attach 3 | . . 2 1 Attach 30 | 1 . 5 24 Detach 1 | . . . 1 Swap 5 | . . 1 4 Drop 8 | . . 2 6 Fire 163 | 1 15 55 92 Melee . | . . . . Ram . | . . . . Kick 21 | . . . 21 Crush . | . . . . Escape Stasis . | . . . . Rewire . | . . . . Trap . | . . . . Miscellaneous . | . . . . Route ------- -11/Scrapyard -10/Materials (discovered 5 exits: *Mat x3 / [*Min x2]) -10/Mines -9/Materials (discovered 1 exit: Min) History --------- Turn | Location | Event 1 | -11/Scrapyard | Discovered new exit (range 3) 43 | -11/Scrapyard | Entered Materials 140 | -10/Materials | Discovered new exit (range 15) 230 | -10/Materials | Discovered new exit (range 13) 314 | -10/Materials | Build established: Mutant 424 | -10/Materials | Discovered new exit (range 7) 471 | -10/Materials | Discovered new exit (range 7) 633 | -10/Materials | Discovered new exit (range 4) 675 | -10/Materials | Entered Mines 779 | -10/Mines | Excavation squad dispatched 779 | -10/Mines | A large section of the Mines collapsed 1029 | -10/Mines | Excavation squad dispatched 1238 | -10/Mines | Core integrity fell below 50% 1279 | -10/Mines | Excavation squad dispatched 1354 | -10/Mines | Discovered new exit (range 5) 1360 | -10/Mines | Entered Materials 1360 | -9/Materials | Accompanied by 1 ally 1360 | -9/Materials | Evolved 2 slots: Utility x2 1361 | -9/Materials | Identified exit to Mines 1365 | -9/Materials | Led the pair of lost Derelicts to an unsafe place 1778 | -9/Materials | Lost 4 parts (1n1u2w) 1789 | -9/Materials | Core integrity fell below 50% 1904 | -9/Materials | Lost 5 parts (1p3u1w) 1935 | -9/Materials | Core integrity fell below 20% 2277 | -9/Materials | Repaired Beam Rifle 2300 | -9/Materials | Build established: Scavenger-Mutant 2562 | -9/Materials | Destroyed by G-34 Mercenary with Small Laser Last Messages --------------- K-01 Serf cleans the Processing Tank. ALERT: Hostiles spotted, dispatching reinforcements to Terminal M009. Acquired Cooling System. G-34 Mercenary destroyed. K-01 Serf collects debris. G-34 Mercenary destroyed. Acquired 20 matter. K-01 Serf collects debris. Acquired Aluminum Leg. Dropped Heat Sink. R-06 Scavenger collects Aluminum Leg. K-01 Serf destroyed. Dropped Aluminum Leg. U-05 Engineer builds a Door. System corrupted: Component data lost. Ion Engine melted. G-34 Mercenary destroyed. U-05 Engineer builds a Door. Acquired 20 matter. W-16 Scout sends out distress signal. Map ----- +----------------------------------------------------+ | #? ## """"" # ########??????????????????? | | "" +??## + T # #??????????????????? | | "" #???# "" # # #??????????????????? | | "" #???# "T # # #??????????????????? | | #???# "" ## ## #??????????????????? | | #####???# ## ## #??????????????????? | | #????########### ## % #????????###???????? | | ##??????????????# ###"########## #???????? | | #???????????????# *%![^ #???????? | | #?????##????????# =%*=^ T ????????? | | ##??? ????????# ^ #???????? | | =#### """????????######### ######## #???????? | | #####" """????????????????# #??????????###???????? | | # """????????????????# #????????????????????? | | ! # """????????????????# #????????????????????? | | / """????????????????# #????????????????????? | | # """????????????????# #????????????????????? | | # """????????????????# #????????????????????? | | # ????????????#r#????????????????????? | | % ########???????????###g#######??????????????? | | ##?????????????????# % #??????????????? | | ## ##???????????#####?# = #####??????????? | | ## #?????? "##### #u wa + ??????? | | ?? ????? #u """ ######?????????? | | ?? ?>? T + """ #??????????????? | | ??? ?? #@ """ #??????????????? | | ???#+## ##### # "Y" #??????????????? | | ???????###????????##? ?# """ #??????????????? | | ???????????????????? ?###########??????????????? | | ???????????????????? ???????????????????????????? | | ???????????????????# ???????????????????????????? | | ???????????????????# ????????????????????????????? | | ?????????????????????????????????????????????????? | | ?????????????????????????????????????????????????? | | ?????????????????????????????????????????????????? | | ?????????????????????????????????????????????????? | | ?????????????????????????????????????????????????? | | ?????????????????????????????????????????????????? | | ?????????????????????????????????????????????????? | | ?????????????????????????????????????????????????? | | ?????????????????????????????????????????????????? | | ?????????????????????????????????????????????????? | | ?????????????????????????????????????????????????? | | ?????????????????????????????????????????????????? | | ?????????????????????????????????????????????????? | | ?????????????????????????????????????????????????? | | ?????????????????????????????????????????????????? | | ?????????????????????????????????????????????????? | | ?????????????????????????????????????????????????? | | ?????????????????????????????????????????????????? | +----------------------------------------------------+ Best States ------------- Heat Dissipation 42 Energy Generation 14 Energy Capacity 280 Matter Stores 300 Matter Capacity 300 Sight Range 16 Terrain Scan Density 10 Armor Coverage 300 Propulsion Shielding 33 Evasion (%) 55 Recoil Reduction 2 Item Schematics ----------------- Grenade Launcher | -9/Materials | Scanalyzed Robot Schematics ------------------ None Fabricated ------------ Nothing Alien Tech Used ----------------- None Achievements -------------- None Challenges ------------ None Game ------ Seed DisruptionGravitonMegatreads Manual? 0 Play Time 00:31:06 Cumulative 76.2 hours Start 2022.03.25 @ 19:16:26 End 2022.03.25 @ 19:48:39 Sessions 1 Manual Loads 0 Difficulty Rogue Special Mode None Game No. 58 Rogue 58 Adventurer 0 Explorer 0 Win Type - Total 0 Types 0/0/0/0/0/0/0/0/0 Lore% 45 Gallery% 54 Achievement% 39 Wizard Run 0 Options --------- ASCII 0 Keyboard 0 Movement Mouse Keybinds 1 Fullscreen 1 Font 18/TerminusBold Map View 76x50 Tactical HUD 0 Map Filters NONE Filters NONE Steam 1 RUN: d748c4a3-1f67-495a-92a7-39ac86d35535